fUST/lending_fUST_20240130
["ID","MTS","AMOUNT","RATE_DAILY","PERIOD"]
[313008004,1706604643030,-2781.28412935,0.00024643,2]
[313008005,1706604643039,-4028.17459444,0.00024644,2]
[313008006,1706604643049,-1361.38745114,0.00024899,2]
[313008007,1706604643090,-2055.17614731,0.00024899,2]
[313008008,1706604643100,-2760.18216831,0.00025,2]
[313008331,1706605832130,-4076.90016776,0.00025964,2]
[313008332,1706605832140,-270.08184195,0.00025964,2]
[313008333,1706605832151,-990.55913555,0.00025964,2]
[313008334,1706605832163,-4215.39558297,0.00025964,2]
[313008389,1706605843299,-396.85223137,0.00025953,3]
[313008400,1706605846213,-1213.48060352,0.00025953,3]
[313008401,1706605846225,-3977.86716511,0.00025953,3]
[313008402,1706605846235,-1485.86518994,0.00025962,2]
[313008403,1706605846335,-14628.7382738,0.00025963,2]
[313008442,1706607032357,-243.47632395,0.00024651,2]
[313008443,1706607032366,-1774.63754482,0.00024652,2]
[313008444,1706607032375,-1856.95377279,0.00024653,2]
[313008445,1706607032384,-151.22145401,0.00024653,2]
[313008611,1706607043359,-1117.25304334,0.00024653,2]
[313008655,1706607046452,-2808.42567041,0.00024653,2]
[313008657,1706607046462,-332.17284823,0.00024691,2]
[313008658,1706607046471,-4696.86696426,0.00024693,2]
[313008660,1706607046480,-1182.79832216,0.00024721,2]
[313008662,1706607046491,-908.21571175,0.00024721,2]
[313008664,1706607046502,-848.91083595,0.00024721,2]
[313008840,1706607074736,-19398.07256599,0.0003,30]
[313008841,1706607074763,-1000.0,0.0003,30]
[313008842,1706607074785,-2962.66466087,0.0003,45]
[313008843,1706607074810,-1000.0,0.00031,31]
[313008844,1706607074833,-1000.0,0.00032,32]
[313008845,1706607074855,-5294.96960561,0.00032,30]
[313008846,1706607074878,-356.0306,0.000328,120]
[313008847,1706607074901,-1609.1289546,0.00033,30]
[313008848,1706607074924,-1000.0,0.00033,33]
[313008849,1706607074954,-1000.0,0.00034,34]
[313008850,1706607074982,-1000.0,0.00035,35]
[313008851,1706607075007,-163.426474,0.00035616,41]
[313008852,1706607075029,-163.426474,0.00035616,61]
[313008853,1706607075056,-163.426474,0.00035616,80]
[313008854,1706607075077,-163.426474,0.00035616,100]
[313008855,1706607075100,-163.426474,0.00035616,120]
[313008856,1706607075122,-1668.769486,0.00035616,120]
[313008857,1706607075146,-1000.0,0.00036,36]
[313008858,1706607075168,-927.79782719,0.00036,30]
[313008859,1706607075191,-792.18659798,0.00037,30]
[313008860,1706607075213,-1000.0,0.00037,37]
[313008861,1706607075235,-65080.48180125,0.0003795,30]
[313008862,1706607075259,-1583.03265816,0.00038,120]
[313008863,1706607075281,-1000.0,0.00038,38]
[313008864,1706607075324,-1208.30207552,0.0003838,30]
[313008865,1706607075346,-500.0,0.0003863,31]
[313008866,1706607075368,-500.0,0.0003863,31]
[313008867,1706607075392,-500.0,0.0003863,31]
[313008868,1706607075414,-500.0,0.0003863,31]
[313008869,1706607075436,-500.0,0.0003863,31]
[313008870,1706607075458,-624.06339824,0.0003863,31]
[313008871,1706607075480,-500.0,0.0003863,31]
[313008872,1706607075502,-500.0,0.0003863,31]
[313008873,1706607075523,-500.0,0.0003863,31]
[313008874,1706607075545,-500.0,0.0003863,31]
[313008875,1706607075568,-500.0,0.0003863,31]
[313008876,1706607075591,-500.0,0.0003863,31]
[313008877,1706607075613,-750.04,0.0003863,31]
[313008878,1706607075635,-500.0,0.0003863,31]
[313008879,1706607075661,-500.0,0.0003863,31]
[313008880,1706607075684,-500.0,0.0003863,31]
[313008881,1706607075707,-500.0,0.0003863,31]
[313008882,1706607075732,-500.0,0.0003863,31]
[313008883,1706607075758,-500.0,0.0003863,31]
[313008884,1706607075782,-252.56854566,0.0003863,31]
[313008885,1706607075804,-500.0,0.0003863,31]
[313008886,1706607075826,-506.18223952,0.0003863,31]
[313008887,1706607075849,-500.0,0.0003863,31]
[313008888,1706607075873,-500.0,0.0003863,31]
[313008889,1706607075898,-1692.55,0.0003863,31]
[313008890,1706607075922,-385.24888883,0.0003863,31]
[313008891,1706607075945,-500.0,0.0003863,31]
[313008892,1706607075982,-500.0,0.0003863,31]
[313008893,1706607076104,-151.87923645,0.0003863,31]
[313008894,1706607076128,-500.0,0.0003863,31]
[313008895,1706607076151,-500.0,0.0003863,31]
[313008896,1706607076174,-500.0,0.0003863,31]
[313008897,1706607076197,-828.87,0.0003863,31]
[313008898,1706607076221,-511.8653519,0.0003863,31]
[313008899,1706607076244,-506.9804791,0.0003863,31]
[313008900,1706607076267,-1575.2,0.0003863,31]
[313008901,1706607076292,-508.36321115,0.0003863,31]
[313008902,1706607076315,-500.0,0.0003863,31]
[313008903,1706607076339,-500.0,0.0003863,31]
[313008904,1706607076370,-1443.34,0.0003863,31]
[313008905,1706607076392,-500.0,0.0003863,31]
[313008906,1706607076414,-399.11165005,0.0003863,31]
[313008907,1706607076439,-517.72,0.0003863,31]
[313008908,1706607076464,-500.0,0.0003863,31]
[313008909,1706607076487,-319.50710581,0.0003863,31]
[313008910,1706607076513,-500.0,0.0003863,31]
[313008911,1706607076536,-508.74391258,0.0003863,31]
[313008912,1706607076560,-500.0,0.0003863,31]
[313008913,1706607076582,-512.85173583,0.0003863,31]
[313008914,1706607076604,-500.0,0.0003863,31]
[313008915,1706607076629,-500.0,0.0003863,31]
[313008916,1706607076651,-500.0,0.0003863,31]
[313008917,1706607076675,-704.72,0.0003863,31]
[313008918,1706607076698,-1232.14,0.0003863,31]
[313008919,1706607076721,-500.0,0.0003863,31]
[313008920,1706607076743,-545.320504,0.0003863,31]
[313008921,1706607076765,-525.39172237,0.0003863,31]
[313008922,1706607076787,-500.0,0.0003863,31]
[313008923,1706607076809,-504.1923285,0.0003863,31]
[313008924,1706607076831,-500.0,0.0003863,31]
[313008925,1706607076854,-506.40151509,0.0003863,31]
[313008926,1706607076876,-2391.29,0.0003863,31]
[313008927,1706607076898,-500.0,0.0003863,31]
[313008928,1706607076920,-847.24,0.0003863,31]
[313008929,1706607076942,-527.35253399,0.0003863,31]
[313008930,1706607076967,-500.0,0.0003863,31]
[313008931,1706607076990,-500.0,0.0003863,31]
[313008932,1706607077014,-500.0,0.0003863,31]
[313008933,1706607077036,-429.13332013,0.0003863,31]
[313008934,1706607077063,-500.0,0.0003863,31]
[313008935,1706607077085,-500.0,0.0003863,31]
[313008936,1706607077107,-160.70411183,0.0003863,31]
[313008937,1706607077129,-500.0,0.0003863,31]
[313008938,1706607077152,-500.0,0.0003863,31]
[313008939,1706607077180,-503.63912076,0.0003863,31]
[313008940,1706607077203,-761.01,0.0003863,31]
[313008941,1706607077228,-151.96608858,0.0003863,31]
[313008942,1706607077250,-500.0,0.0003863,31]
[313008943,1706607077275,-392.92491146,0.0003863,31]
[313008944,1706607077302,-500.0,0.0003863,31]
[313008945,1706607077326,-500.0,0.0003863,31]
[313008946,1706607077349,-500.0,0.0003863,31]
[313008947,1706607077373,-500.0,0.0003863,31]
[313008948,1706607077397,-1575.03,0.0003863,31]
[313008949,1706607077419,-500.0,0.0003863,31]
[313008950,1706607077442,-905.78,0.0003863,31]
[313008951,1706607077465,-617.42897492,0.0003863,31]
[313008952,1706607077488,-500.0,0.0003863,31]
[313008953,1706607077511,-500.0,0.0003863,31]
[313008954,1706607077534,-500.0,0.0003863,31]
[313008955,1706607077557,-500.0,0.0003863,31]
[313008956,1706607077580,-513.55694953,0.0003863,31]
[313008957,1706607077607,-1160.62,0.0003863,31]
[313008958,1706607077630,-500.0,0.0003863,31]
[313008959,1706607077652,-500.0,0.0003863,31]
[313008960,1706607077676,-1122.68,0.0003863,31]
[313008961,1706607077699,-500.0,0.0003863,31]
[313008962,1706607077723,-500.0,0.0003863,31]
[313008963,1706607077746,-500.0,0.0003863,31]
[313008964,1706607077769,-500.0,0.0003863,31]
[313008965,1706607077791,-272.18436956,0.0003863,31]
[313008966,1706607077814,-500.0,0.0003863,31]
[313008967,1706607077918,-500.0,0.0003863,31]
[313008968,1706607077941,-500.0,0.0003863,31]
[313008969,1706607077971,-500.0,0.0003863,31]
[313008970,1706607077994,-500.0,0.0003863,31]
[313008971,1706607078018,-500.0,0.0003863,31]
[313008972,1706607078043,-1790.94,0.0003863,31]
[313008973,1706607078069,-878.3,0.0003863,31]
[313008974,1706607078092,-193.86145667,0.0003863,31]
[313008975,1706607078116,-500.0,0.0003863,31]
[313008976,1706607078141,-6108.1,0.0003863,31]
[313008977,1706607078164,-500.0,0.0003863,31]
[313008978,1706607078187,-500.0,0.0003863,31]
[313008979,1706607078209,-969.63,0.0003863,31]
[313008980,1706607078232,-500.0,0.0003863,31]
[313008981,1706607078255,-959.84,0.0003863,31]
[313008982,1706607078280,-500.0,0.0003863,31]
[313008983,1706607078303,-500.0,0.0003863,31]
[313008984,1706607078327,-505.00016571,0.0003863,31]
[313008985,1706607078350,-354.41509441,0.0003863,31]
[313008986,1706607078372,-549.89942371,0.0003863,31]
[313008987,1706607078395,-500.0,0.0003863,31]
[313008988,1706607078417,-600.01679341,0.0003863,31]
[313008989,1706607078441,-1853.28,0.0003863,31]
[313008990,1706607078463,-614.30914076,0.0003863,31]
[313008991,1706607078485,-500.0,0.0003863,31]
[313008992,1706607078508,-500.0,0.0003863,31]
[313008993,1706607078531,-500.0,0.0003863,31]
[313008994,1706607078553,-25140.0,0.0003863,31]
[313008995,1706607078578,-2266.55,0.0003863,31]
[313008996,1706607078601,-20537.92,0.0003863,31]
[313008997,1706607078624,-383.03469705,0.0003863,31]
[313008998,1706607078646,-1073.76,0.0003863,31]
[313008999,1706607078669,-194.35537134,0.0003863,31]
[313009000,1706607078691,-1255.84,0.0003863,31]
[313009001,1706607078715,-3530.34,0.0003863,31]
[313009002,1706607078738,-8924.87,0.0003863,31]
[313009003,1706607078765,-500.0,0.0003863,31]
[313009004,1706607078800,-5269.51,0.0003863,31]
[313009005,1706607078829,-280.24278474,0.0003863,31]
[313009006,1706607078864,-2807.77,0.0003863,31]
[313009007,1706607078895,-500.0,0.0003863,31]
[313009008,1706607078924,-2212.33,0.0003863,31]
[313009009,1706607078955,-500.0,0.0003863,31]
[313009010,1706607078990,-500.0,0.0003863,31]
[313009011,1706607079021,-500.0,0.0003863,31]
[313009012,1706607079049,-500.0,0.0003863,31]
[313009013,1706607079083,-500.0,0.0003863,31]
[313009014,1706607079110,-500.0,0.0003863,31]
[313009015,1706607079142,-500.0,0.0003863,31]
[313009016,1706607079174,-5938.62,0.0003863,31]
[313009017,1706607079208,-500.0,0.0003863,31]
[313009018,1706607079234,-500.0,0.0003863,31]
[313009019,1706607079263,-500.0,0.0003863,31]
[313009020,1706607079294,-530.91,0.0003863,31]
[313009021,1706607079323,-511.08213027,0.0003863,31]
[313009022,1706607079351,-500.0,0.0003863,31]
[313009023,1706607079380,-500.0,0.0003863,31]
[313009024,1706607079408,-2694.13,0.0003863,31]
[313009025,1706607079437,-267.12065884,0.0003863,31]
[313009026,1706607079465,-500.0,0.0003863,31]
[313009027,1706607079493,-2295.78,0.0003863,31]
[313009028,1706607079519,-601.5770283,0.0003863,31]
[313009029,1706607079549,-500.0,0.0003863,31]
[313009030,1706607079578,-2021.36,0.0003863,31]
[313009031,1706607079605,-500.0,0.0003863,31]
[313009032,1706607079632,-503.09381276,0.0003863,31]
[313009033,1706607079659,-509.82475587,0.0003863,31]
[313009034,1706607079689,-500.0,0.0003863,31]
[313009035,1706607079717,-779.7,0.0003863,31]
[313009036,1706607079746,-1742.41,0.0003863,31]
[313009037,1706607079775,-500.0,0.0003863,31]
[313009038,1706607079804,-504.63075062,0.0003863,31]
[313009039,1706607079945,-506.33427624,0.0003863,31]
[313009040,1706607079970,-428.7817863,0.0003863,31]
[313009041,1706607079994,-2473.67,0.0003863,31]
[313009042,1706607080018,-1815.65,0.0003863,31]
[313009043,1706607080041,-500.0,0.0003863,31]
[313009044,1706607080065,-500.0,0.0003863,31]
[313009045,1706607080096,-688.53,0.0003863,31]
[313009046,1706607080119,-448.26870923,0.0003863,31]
[313009047,1706607080143,-500.0,0.0003863,31]
[313009048,1706607080166,-500.0,0.0003863,31]
[313009049,1706607080189,-515.91335074,0.0003863,31]
[313009050,1706607080212,-2910.74,0.0003863,31]
[313009051,1706607080235,-1436.14,0.0003863,31]
[313009052,1706607080258,-500.0,0.00038904,31]
[313009053,1706607080283,-500.0,0.00038904,31]
[313009054,1706607080306,-500.0,0.00038904,31]
[313009055,1706607080330,-553.79981414,0.00038904,31]
[313009056,1706607080352,-504.94946743,0.00038904,31]
[313009057,1706607080374,-500.0,0.00038904,31]
[313009058,1706607080397,-500.0,0.00038904,31]
[313009059,1706607080420,-500.0,0.00038904,31]
[313009060,1706607080443,-500.0,0.00038904,31]
[313009061,1706607080466,-500.0,0.00038904,31]
[313009062,1706607080489,-500.0,0.00038904,31]
[313009063,1706607080515,-750.04,0.00038904,31]
[313009064,1706607080538,-500.0,0.00038904,31]
[313009065,1706607080561,-500.0,0.00038904,31]
[313009066,1706607080583,-500.0,0.00038904,31]
[313009067,1706607080605,-500.0,0.00038904,31]
[313009068,1706607080628,-500.0,0.00038904,31]
[313009069,1706607080650,-500.0,0.00038904,31]
[313009070,1706607080673,-500.0,0.00038904,31]
[313009071,1706607080696,-500.0,0.00038904,31]
[313009072,1706607080723,-500.0,0.00038904,31]
[313009073,1706607080746,-1692.55,0.00038904,31]
[313009074,1706607080768,-500.0,0.00038904,31]
[313009075,1706607080791,-500.0,0.00038904,31]
[313009076,1706607080814,-500.0,0.00038904,31]
[313009077,1706607080837,-600.15260305,0.00038904,31]
[313009078,1706607080860,-508.34466508,0.00038904,31]
[313009079,1706607080885,-828.87,0.00038904,31]
[313009080,1706607080907,-1575.2,0.00038904,31]
[313009081,1706607080930,-500.0,0.00038904,31]
[313009082,1706607080954,-500.0,0.00038904,31]
[313009083,1706607080979,-1443.34,0.00038904,31]
[313009084,1706607081002,-500.0,0.00038904,31]
[313009085,1706607081026,-517.72,0.00038904,31]
[313009086,1706607081049,-304.19714353,0.00038904,31]
[313009087,1706607081073,-515.83723837,0.00038904,31]
[313009088,1706607081097,-500.0,0.00038904,31]
[313009089,1706607081120,-500.0,0.00038904,31]
[313009090,1706607081143,-504.07800594,0.00038904,31]
[313009091,1706607081166,-500.0,0.00038904,31]
[313009092,1706607081189,-704.72,0.00038904,31]
[313009093,1706607081211,-1232.14,0.00038904,31]
[313009094,1706607081235,-505.21667772,0.00038904,31]
[313009095,1706607081259,-500.0,0.00038904,31]
[313009096,1706607081282,-500.0,0.00038904,31]
[313009097,1706607081307,-2391.29,0.00038904,31]
[313009098,1706607081332,-506.79173118,0.00038904,31]
[313009099,1706607081355,-847.24,0.00038904,31]
[313009100,1706607081378,-151.5662621,0.00038904,31]
[313009101,1706607081401,-500.0,0.00038904,31]
[313009102,1706607081424,-567.54761023,0.00038904,31]
[313009103,1706607081448,-500.0,0.00038904,31]
[313009104,1706607081472,-500.0,0.00038904,31]
[313009105,1706607081496,-500.0,0.00038904,31]
[313009106,1706607081519,-761.01,0.00038904,31]
[313009107,1706607081542,-500.0,0.00038904,31]
[313009108,1706607081567,-500.0,0.00038904,31]
[313009109,1706607081590,-500.0,0.00038904,31]
[313009110,1706607081615,-500.0,0.00038904,31]
[313009111,1706607081638,-500.0,0.00038904,31]
[313009112,1706607081661,-1575.03,0.00038904,31]
[313009113,1706607081685,-500.0,0.00038904,31]
[313009114,1706607081709,-905.78,0.00038904,31]
[313009115,1706607081734,-500.0,0.00038904,31]
[313009116,1706607081758,-500.0,0.00038904,31]
[313009117,1706607081781,-500.0,0.00038904,31]
[313009118,1706607081806,-500.0,0.00038904,31]
[313009119,1706607081829,-1160.62,0.00038904,31]
[313009120,1706607081853,-500.0,0.00038904,31]
[313009121,1706607081876,-506.98634829,0.00038904,31]
[313009122,1706607081900,-1122.68,0.00038904,31]
[313009123,1706607081923,-509.0749638,0.00038904,31]
[313009124,1706607081947,-500.0,0.00038904,31]
[313009125,1706607082093,-500.0,0.00038904,31]
[313009126,1706607082118,-500.0,0.00038904,31]
[313009127,1706607082143,-503.41915426,0.00038904,31]
[313009128,1706607082167,-500.0,0.00038904,31]
[313009129,1706607082190,-500.0,0.00038904,31]
[313009130,1706607082214,-505.23698811,0.00038904,31]
[313009131,1706607082239,-500.0,0.00038904,31]
[313009132,1706607082263,-513.82511456,0.00038904,31]
[313009133,1706607082288,-1790.94,0.00038904,31]
[313009134,1706607082313,-878.3,0.00038904,31]
[313009135,1706607082337,-500.0,0.00038904,31]
[313009136,1706607082361,-6108.1,0.00038904,31]
[313009137,1706607082385,-504.848784,0.00038904,31]
[313009138,1706607082409,-500.0,0.00038904,31]
[313009139,1706607082432,-969.63,0.00038904,31]
[313009140,1706607082455,-507.4465968,0.00038904,31]
[313009141,1706607082479,-959.84,0.00038904,31]
[313009142,1706607082503,-500.0,0.00038904,31]
[313009143,1706607082527,-500.0,0.00038904,31]
[313009144,1706607082550,-500.0,0.00038904,31]
[313009145,1706607082575,-1853.28,0.00038904,31]
[313009146,1706607082598,-500.0,0.00038904,31]
[313009147,1706607082622,-500.0,0.00038904,31]
[313009148,1706607082645,-504.47424394,0.00038904,31]
[313009149,1706607082669,-25140.0,0.00038904,31]
[313009150,1706607082694,-2266.55,0.00038904,31]
[313009151,1706607082718,-20537.92,0.00038904,31]
[313009152,1706607082741,-1073.76,0.00038904,31]
[313009153,1706607082765,-1255.84,0.00038904,31]
[313009154,1706607082790,-3530.34,0.00038904,31]
[313009155,1706607082813,-8924.87,0.00038904,31]
[313009156,1706607082836,-500.0,0.00038904,31]
[313009157,1706607082860,-5269.51,0.00038904,31]
[313009158,1706607082883,-2807.77,0.00038904,31]
[313009159,1706607082906,-500.0,0.00038904,31]
[313009160,1706607082931,-2212.33,0.00038904,31]
[313009161,1706607082954,-512.18843148,0.00038904,31]
[313009162,1706607082982,-500.0,0.00038904,31]
[313009163,1706607083006,-503.36318512,0.00038904,31]
[313009164,1706607083029,-500.0,0.00038904,31]
[313009165,1706607083053,-500.0,0.00038904,31]
[313009166,1706607083077,-500.0,0.00038904,31]
[313009167,1706607083101,-500.0,0.00038904,31]
[313009168,1706607083126,-5938.62,0.00038904,31]
[313009169,1706607083150,-619.42497925,0.00038904,31]
[313009170,1706607083173,-500.0,0.00038904,31]
[313009171,1706607083197,-500.0,0.00038904,31]
[313009172,1706607083220,-530.91,0.00038904,31]
[313009173,1706607083242,-500.0,0.00038904,31]
[313009174,1706607083265,-500.0,0.00038904,31]
[313009175,1706607083288,-2694.13,0.00038904,31]
[313009176,1706607083313,-500.0,0.00038904,31]
[313009177,1706607083336,-2295.78,0.00038904,31]
[313009178,1706607083360,-500.0,0.00038904,31]
[313009179,1706607083383,-2021.36,0.00038904,31]
[313009180,1706607083406,-500.0,0.00038904,31]
[313009181,1706607083429,-483.28980586,0.00038904,31]
[313009182,1706607083452,-779.7,0.00038904,31]
[313009183,1706607083477,-1742.41,0.00038904,31]
[313009184,1706607083500,-500.0,0.00038904,31]
[313009185,1706607083523,-2473.67,0.00038904,31]
[313009186,1706607083548,-1815.65,0.00038904,31]
[313009187,1706607083572,-500.0,0.00038904,31]
[313009188,1706607083594,-500.0,0.00038904,31]
[313009189,1706607083618,-688.53,0.00038904,31]
[313009190,1706607083643,-500.0,0.00038904,31]
[313009191,1706607083667,-500.0,0.00038904,31]
[313009192,1706607083689,-2910.74,0.00038904,31]
[313009193,1706607083712,-1436.14,0.00038904,31]
[313009194,1706607083741,-1000.0,0.00039,39]
[313009195,1706607083766,-500.0,0.00039,30]
[313009196,1706607083788,-616.18185279,0.00039178,31]
[313009197,1706607083810,-500.0,0.00039178,31]
[313009198,1706607083832,-500.0,0.00039178,31]
[313009199,1706607083854,-500.0,0.00039178,31]
[313009200,1706607083876,-500.0,0.00039178,31]
[313009201,1706607083898,-500.0,0.00039178,31]
[313009202,1706607083921,-500.0,0.00039178,31]
[313009203,1706607083943,-500.0,0.00039178,31]
[313009204,1706607083967,-500.0,0.00039178,31]
[313009205,1706607083990,-750.04,0.00039178,31]
[313009206,1706607084013,-500.0,0.00039178,31]
[313009207,1706607084036,-500.0,0.00039178,31]
[313009208,1706607084133,-500.0,0.00039178,31]
[313009209,1706607084172,-500.0,0.00039178,31]
[313009210,1706607084195,-500.0,0.00039178,31]
[313009211,1706607084218,-500.0,0.00039178,31]
[313009212,1706607084240,-500.0,0.00039178,31]
[313009213,1706607084264,-500.0,0.00039178,31]
[313009214,1706607084287,-191.48788272,0.00039178,31]
[313009215,1706607084311,-1692.55,0.00039178,31]
[313009216,1706607084334,-516.94316083,0.00039178,31]
[313009217,1706607084357,-499.14369344,0.00039178,31]
[313009218,1706607089287,-500.14946707,0.0003863,31]
[313009219,1706607089310,-500.0,0.0003863,31]
[313009220,1706607089334,-500.0,0.00038904,31]
[313009221,1706607089357,-0.85630656,0.00039178,31]
[313009222,1706607089381,-260.37270402,0.00039178,31]
[313009223,1706607089403,-828.87,0.00039178,31]
[313009224,1706607089426,-1575.2,0.00039178,31]
[313009225,1706607089448,-500.0,0.00039178,31]
[313009226,1706607089471,-331.01443187,0.00039178,31]
[313009227,1706607089495,-1443.34,0.00039178,31]
[313009228,1706607089518,-500.0,0.00039178,31]
[313009229,1706607089541,-517.72,0.00039178,31]
[313009230,1706607089566,-500.0,0.00039178,31]
[313009231,1706607089589,-500.0,0.00039178,31]
[313009232,1706607089613,-337.66411677,0.00039178,31]
[313009233,1706607089636,-704.72,0.00039178,31]
[313009234,1706607089661,-1232.14,0.00039178,31]
[313009235,1706607089684,-500.0,0.00039178,31]
[313009236,1706607089707,-500.0,0.00039178,31]
[313009237,1706607089730,-2391.29,0.00039178,31]
[313009238,1706607089754,-847.24,0.00039178,31]
[313009239,1706607089777,-500.0,0.00039178,31]
[313009240,1706607089800,-500.0,0.00039178,31]
[313009241,1706607089823,-407.85,0.00039178,31]
[313009242,1706607089846,-500.0,0.00039178,31]
[313009243,1706607089869,-761.01,0.00039178,31]
[313009244,1706607089891,-500.0,0.00039178,31]
[313009245,1706607089915,-500.0,0.00039178,31]
[313009246,1706607089938,-500.0,0.00039178,31]
[313009247,1706607089963,-500.0,0.00039178,31]
[313009248,1706607089991,-500.0,0.00039178,31]
[313009249,1706607090015,-1575.03,0.00039178,31]
[313009250,1706607090039,-555.55012763,0.00039178,31]
[313009251,1706607090065,-905.78,0.00039178,31]
[313009252,1706607090089,-500.0,0.00039178,31]
[313009253,1706607090112,-500.0,0.00039178,31]
[313009254,1706607090138,-500.0,0.00039178,31]
[313009255,1706607090160,-505.51621219,0.00039178,31]
[313009256,1706607090183,-1160.62,0.00039178,31]
[313009257,1706607090297,-500.0,0.00039178,31]
[313009258,1706607090321,-1122.68,0.00039178,31]
[313009259,1706607090344,-500.0,0.00039178,31]
[313009260,1706607090368,-500.0,0.00039178,31]
[313009261,1706607090391,-500.0,0.00039178,31]
[313009262,1706607090415,-511.44442149,0.00039178,31]
[313009263,1706607090438,-500.0,0.00039178,31]
[313009264,1706607090463,-500.0,0.00039178,31]
[313009265,1706607090486,-1790.94,0.00039178,31]
[313009266,1706607090511,-878.3,0.00039178,31]
[313009267,1706607090534,-500.0,0.00039178,31]
[313009268,1706607090558,-6108.1,0.00039178,31]
[313009269,1706607090582,-500.0,0.00039178,31]
[313009270,1706607090606,-969.63,0.00039178,31]
[313009271,1706607090629,-959.84,0.00039178,31]
[313009272,1706607090653,-500.0,0.00039178,31]
[313009273,1706607090676,-500.0,0.00039178,31]
[313009274,1706607090698,-1853.28,0.00039178,31]
[313009275,1706607090722,-500.0,0.00039178,31]
[313009276,1706607090746,-261.7483477,0.00039178,31]
[313009277,1706607090769,-25140.0,0.00039178,31]
[313009278,1706607090798,-2266.55,0.00039178,31]
[313009279,1706607090822,-20537.92,0.00039178,31]
[313009280,1706607090847,-1073.76,0.00039178,31]
[313009281,1706607090871,-1255.84,0.00039178,31]
[313009282,1706607090895,-3530.34,0.00039178,31]
[313009283,1706607090919,-8924.87,0.00039178,31]
[313009284,1706607090942,-500.0,0.00039178,31]
[313009285,1706607090966,-5269.51,0.00039178,31]
[313009286,1706607090992,-2807.77,0.00039178,31]
[313009287,1706607091019,-500.0,0.00039178,31]
[313009288,1706607091045,-2212.33,0.00039178,31]
[313009289,1706607091070,-514.69671884,0.00039178,31]
[313009290,1706607091094,-500.0,0.00039178,31]
[313009291,1706607091118,-500.0,0.00039178,31]
[313009292,1706607091143,-500.0,0.00039178,31]
[313009293,1706607091167,-500.0,0.00039178,31]
[313009294,1706607091191,-5938.62,0.00039178,31]
[313009295,1706607091214,-500.0,0.00039178,31]
[313009296,1706607091238,-500.0,0.00039178,31]
[313009297,1706607091261,-530.91,0.00039178,31]
[313009298,1706607091284,-500.0,0.00039178,31]
[313009299,1706607091307,-500.0,0.00039178,31]
[313009300,1706607091331,-2694.13,0.00039178,31]
[313009301,1706607091355,-261.23637842,0.00039178,31]
[313009302,1706607091379,-2295.78,0.00039178,31]
[313009303,1706607091404,-500.0,0.00039178,31]
[313009304,1706607091427,-2021.36,0.00039178,31]
[313009305,1706607091450,-500.0,0.00039178,31]
[313009306,1706607091474,-779.7,0.00039178,31]
[313009307,1706607091497,-1742.41,0.00039178,31]
[313009308,1706607091520,-500.0,0.00039178,31]
[313009309,1706607091544,-2473.67,0.00039178,31]
[313009310,1706607091570,-1815.65,0.00039178,31]
[313009311,1706607091593,-500.0,0.00039178,31]
[313009312,1706607091616,-500.0,0.00039178,31]
[313009313,1706607091640,-688.53,0.00039178,31]
[313009314,1706607091665,-500.0,0.00039178,31]